bitfinex-derivatives/quotes_ETHF0:USTF0_20230701
["timestamp","ask_amount","ask_price","bid_price","bid_amount"]
[1688226007704,7.27182029,1923.5,1923.3,0.73589838]
[1688226011495,7.27182029,1923.5,1923.3,0.31197]
[1688226011693,7.27182029,1923.5,1923.2,3.59097]
[1688226011995,3.2078,1923.3,1923.2,3.59097]
[1688226012215,3.80648635,1923.3,1923.2,0.31197]
[1688226012496,3.80648635,1923.3,1923.2,0.31199]
[1688226015289,1.71561978,1923.4,1923.2,3.59099]
[1688226015594,1.71561978,1923.4,1923.3,3.279]
[1688226015793,1.06665635,1923.4,1923.3,3.59097]
[1688226016401,0.77994,1923.4,1923.3,3.59097]
[1688226017492,1.06665635,1923.4,1923.3,3.59097]
[1688226018294,0.77994,1923.4,1923.3,3.59097]
[1688226018995,5.54812394,1923.5,1923.3,3.59097]
[1688226019193,0.31196,1923.4,1923.3,3.59097]
[1688226019389,5.54812394,1923.5,1923.3,3.59097]
[1688226020102,5.54812394,1923.5,1923.4,3.268]
[1688226020297,5.54812394,1923.5,1923.4,3.57996]
[1688226022200,5.54810394,1923.5,1923.4,3.57996]
[1688226024207,5.54810394,1923.5,1923.4,8.36416]
[1688226024605,0.18636394,1923.5,1923.4,8.36416]
[1688226025901,0.18636394,1923.5,1923.4,3.57996]
[1688226026102,0.18636394,1923.5,1923.4,8.82436]
[1688226030506,0.78502029,1923.5,1923.4,8.82436]
[1688226031908,0.78502029,1923.5,1923.4,3.57996]
[1688226034116,0.49830394,1923.5,1923.4,3.57996]
[1688226034411,0.18636394,1923.5,1923.4,3.57996]
[1688226040916,0.48573611,1923.5,1923.4,3.57996]
[1688226044717,0.77245246,1923.5,1923.4,3.57996]
[1688226047416,0.48573611,1923.5,1923.4,3.57996]
[1688226049810,0.79767611,1923.5,1923.4,8.84136]
[1688226050316,1.08439246,1923.5,1923.4,8.84136]
[1688226052716,1.08439246,1923.5,1923.4,3.57996]
[1688226060229,0.79767611,1923.5,1923.4,3.57996]
[1688226060416,1.08439246,1923.5,1923.4,3.57996]
[1688226063324,0.48573611,1923.5,1923.4,3.57996]
[1688226064329,0.48573611,1923.5,1923.4,8.62656]
[1688226064823,0.79768611,1923.5,1923.4,8.62656]
[1688226068223,1.08440246,1923.5,1923.4,3.57996]
[1688226069026,0.79768611,1923.5,1923.4,3.57996]
[1688226069728,1.08440246,1923.5,1923.4,3.57996]
[1688226070732,0.79768611,1923.5,1923.4,3.57996]
[1688226074635,0.48573611,1923.5,1923.4,3.57996]
[1688226090642,0.77245246,1923.5,1923.4,3.57996]
[1688226093746,1.08440246,1923.5,1923.4,3.57996]
[1688226096648,0.77245246,1923.5,1923.4,3.57996]
[1688226097240,0.48573611,1923.5,1923.4,3.57996]
[1688226104248,0.77245246,1923.5,1923.4,3.57996]
[1688226105243,1.08440246,1923.5,1923.4,3.57996]
[1688226109354,0.77245246,1923.5,1923.4,3.57996]
[1688226111656,0.48573611,1923.5,1923.4,3.57996]
[1688226112854,0.79768611,1923.5,1923.4,3.57996]
[1688226114256,1.08440246,1923.5,1923.4,3.57996]
[1688226117558,0.79768611,1923.5,1923.4,3.57996]
[1688226119260,0.48573611,1923.5,1923.4,3.57996]
[1688226120758,0.79768611,1923.5,1923.4,3.57996]
[1688226120965,1.08440246,1923.5,1923.4,3.57996]
[1688226121359,4.29220246,1923.5,1923.4,3.57996]
[1688226129672,7.56720246,1923.5,1923.4,0.31196]
[1688226132073,4.29220246,1923.5,1923.4,0.31196]
[1688226142079,4.29220246,1923.5,1923.4,3.57996]
[1688226175309,3.69353611,1923.5,1923.4,3.57996]
[1688226175513,3.57167133,1923.5,1923.4,3.57996]
[1688226175707,3.88364133,1923.5,1923.4,3.57996]
[1688226176109,3.75406398,1923.5,1923.4,3.57996]
[1688226178015,0.54626398,1923.5,1923.4,3.57996]
[1688226180518,4.04078033,1923.5,1923.4,3.57996]
[1688226180809,0.54626398,1923.5,1923.4,3.59096]
[1688226181010,0.23429398,1923.5,1923.4,3.59096]
[1688226181806,0.54626398,1923.5,1923.4,3.59096]
[1688226183724,0.23429398,1923.5,1923.4,3.59096]
[1688226184120,0.54626398,1923.5,1923.4,3.59096]
[1688226186124,0.64661639,1923.5,1923.4,3.59096]
[1688226186322,0.83307875,1923.5,1923.4,3.59096]
[1688226191736,0.5463624,1923.5,1923.4,3.59096]
[1688226193829,0.83307875,1923.5,1923.4,3.59096]
[1688226195336,0.5463624,1923.5,1923.4,3.59096]
[1688226201145,0.83307875,1923.5,1923.4,3.59096]
[1688226202640,4.04087875,1923.5,1923.4,3.59096]
[1688226203443,3.7541624,1923.5,1923.4,3.59096]
[1688226205443,4.04087875,1923.5,1923.4,3.59096]
[1688226207543,3.7541624,1923.5,1923.4,3.59096]
[1688226209749,0.2343924,1923.5,1923.4,6.79876]
[1688226212050,0.5463624,1923.5,1923.4,6.79876]
[1688226215149,0.5463624,1923.5,1923.4,3.59096]
[1688226222958,0.83307875,1923.5,1923.4,3.59096]
[1688226224063,0.5463624,1923.5,1923.4,3.59096]
[1688226237762,0.83307875,1923.5,1923.4,3.59096]
[1688226243469,0.5463624,1923.5,1923.4,3.59096]
[1688226245276,0.83307875,1923.5,1923.4,3.59096]
[1688226248479,0.5463624,1923.5,1923.4,3.59096]
[1688226249783,0.83307875,1923.5,1923.4,3.59096]
[1688226250386,0.5463624,1923.5,1923.4,3.59096]
[1688226266003,0.2343924,1923.5,1923.4,3.59096]
[1688226275907,0.52110875,1923.5,1923.4,3.59096]
[1688226279116,0.52110875,1923.5,1923.4,0.31196]
[1688226279314,0.83306875,1923.5,1923.4,0.31196]
[1688226279503,1.76874853,1923.5,1923.4,0.31196]
[1688226302236,5.04774853,1923.5,1923.4,0.31196]
[1688226303142,5.04374853,1923.5,1923.3,1.19352141]
[1688226303336,6.4868,1923.4,1923.3,0.41359141]
[1688226303638,7.03468431,1923.4,1923.2,0.312]
[1688226303838,0.28671635,1923.3,1923.2,0.312]
[1688226304038,0.83462544,1923.3,1923.2,0.312]
[1688226304938,1.77030522,1923.3,1923.2,0.312]
[1688226306048,1.77030522,1923.3,1923.2,0.72530863]
[1688226306240,1.77030522,1923.3,1923.2,0.312]
[1688226306443,1.77030522,1923.3,1923.1,1.18862788]
[1688226306742,1.77030522,1923.3,1923.1,0.77998]
[1688226306743,6.4828,1923.2,1923.1,0.77998]
[1688226306938,6.79481,1923.2,1923.1,0.77998]
[1688226307139,6.90528324,1923.2,1923.1,0.31203]
[1688226307449,3.31827324,1923.2,1923.1,0.31203]
[1688226307646,0.11047324,1923.2,1923.1,0.31203]
[1688226307843,0.42248324,1923.2,1923.1,0.31203]
[1688226308543,3.63028324,1923.2,1923.1,0.31203]
[1688226310740,3.31827324,1923.2,1923.1,3.58003]
[1688226310935,0.11047324,1923.2,1923.1,3.58003]
[1688226312441,3.9878,1923.4,1923.1,3.58003]
[1688226312645,0.11052368,1923.2,1923.1,0.31203]
[1688226312844,3.9878,1923.4,1923.1,3.59103]
[1688226313148,3.9878,1923.4,1923.3,3.591]
[1688226313347,4.27451635,1923.4,1923.3,3.591]
[1688226315348,3.9878,1923.4,1923.3,3.591]
[1688226316152,4.27451635,1923.4,1923.3,3.591]
[1688226318846,0.93567978,1923.5,1923.3,3.591]
[1688226319152,5.34410457,1923.6,1923.4,3.84648412]
[1688226319351,4.40842479,1923.6,1923.5,0.31197]
[1688226319551,4.69514114,1923.6,1923.5,0.31197]
[1688226320156,4.80573374,1923.6,1923.5,0.31197]
[1688226320641,4.39292447,1923.6,1923.5,0.31197]
[1688226324356,4.10620812,1923.6,1923.5,0.31197]
[1688226325161,0.11838812,1923.6,1923.5,3.57997]
[1688226329856,0.11838812,1923.6,1923.5,4.00614263]
[1688226339056,0.00779552,1923.6,1923.5,5.56838432]
[1688226339767,0.00779552,1923.6,1923.5,10.84198432]
[1688226340184,0.22012483,1923.6,1923.5,10.84198432]
[1688226340365,0.00779552,1923.6,1923.5,10.84198432]
[1688226340661,0.22013039,1923.6,1923.5,10.94598432]
[1688226340867,0.00779552,1923.6,1923.5,10.94598432]
[1688226341067,0.22013442,1923.6,1923.5,10.94598432]
[1688226344868,0.22013442,1923.6,1923.5,10.84198432]
[1688226351071,0.22013442,1923.6,1923.5,9.27974263]
[1688226351272,0.22013442,1923.6,1923.5,4.00614263]
[1688226351969,0.81880077,1923.6,1923.5,4.00614263]
[1688226352174,0.81880077,1923.6,1923.5,0.73814263]
[1688226352872,0.50685077,1923.6,1923.5,0.73814263]
[1688226353383,0.50685077,1923.6,1923.5,4.00614263]
[1688226353677,0.22013442,1923.6,1923.5,4.00614263]
[1688226353869,0.50685077,1923.6,1923.5,4.00614263]
[1688226355781,0.22013442,1923.6,1923.5,4.00614263]
[1688226357783,0.50685077,1923.6,1923.5,4.00614263]
[1688226360179,0.22013442,1923.6,1923.5,4.00614263]
[1688226367077,0.50685077,1923.6,1923.5,4.00614263]
[1688226367478,0.22013442,1923.6,1923.5,4.00614263]
[1688226379890,0.22013442,1923.6,1923.5,3.897834]
[1688226382791,0.22013442,1923.6,1923.5,9.106634]
[1688226395695,0.81879077,1923.6,1923.5,9.106634]
[1688226396002,0.81879077,1923.6,1923.5,3.897834]
[1688226397707,0.50685077,1923.6,1923.5,3.897834]
[1688226397894,0.81878077,1923.6,1923.5,3.897834]
[1688226398708,0.50685077,1923.6,1923.5,3.897834]
[1688226399111,0.81878077,1923.6,1923.5,3.897834]
[1688226399595,0.50685077,1923.6,1923.5,3.897834]
[1688226402005,0.22013442,1923.6,1923.5,3.897834]
[1688226402204,0.50685077,1923.6,1923.5,3.897834]
[1688226403909,0.22013442,1923.6,1923.5,3.897834]
[1688226404111,0.22013442,1923.6,1923.5,8.905134]
[1688226415324,0.00779552,1923.6,1923.5,8.905134]
[1688226416320,0.00779552,1923.6,1923.5,15.26665648]
[1688226417319,0.00779552,1923.6,1923.5,13.905134]
[1688226417915,0.22087098,1923.6,1923.5,13.905134]
[1688226422622,0.50758733,1923.6,1923.5,13.905134]
[1688226422825,0.50758733,1923.6,1923.5,8.905134]
[1688226423822,0.22087098,1923.6,1923.5,8.905134]
[1688226424224,0.50758733,1923.6,1923.5,8.905134]
[1688226427523,0.22087098,1923.6,1923.5,8.905134]
[1688226428735,0.22087098,1923.6,1923.5,3.897834]
[1688226428736,0.50758733,1923.6,1923.5,3.897834]
[1688226434344,0.81952733,1923.6,1923.5,0.629834]
[1688226434644,7.18110962,1923.6,1923.3,0.77992]
[1688226434842,3.2078,1923.4,1923.3,0.77992]
[1688226435043,3.51977,1923.4,1923.3,0.77992]
[1688226435249,3.80648635,1923.4,1923.3,0.77992]
[1688226435744,4.74177352,1923.4,1923.3,0.31199]
[1688226436940,4.74177352,1923.4,1923.3,0.71951745]
[1688226437136,3.80648635,1923.4,1923.3,0.31199]
[1688226439838,0.59868635,1923.4,1923.3,0.31199]
[1688226440244,0.68541831,1923.4,1923.3,0.31199]
[1688226440939,3.89321831,1923.4,1923.3,0.31199]
[1688226443045,0.68541831,1923.4,1923.3,0.31199]
[1688226444447,3.96441831,1923.4,1923.3,0.31199]
[1688226450051,4.06841831,1923.4,1923.3,0.31199]
[1688226453157,3.96441831,1923.4,1923.3,0.31199]
[1688226464863,7.17221831,1923.4,1923.3,0.31199]
[1688226467172,3.36573196,1923.4,1923.3,0.31199]
[1688226467760,3.65244831,1923.4,1923.3,0.31199]
[1688226468469,3.96441831,1923.4,1923.3,0.31199]
[1688226472275,0.68541831,1923.4,1923.3,0.31199]
[1688226484667,0.37344831,1923.4,1923.3,0.31199]
[1688226484974,0.68541831,1923.4,1923.3,0.31199]
[1688226485679,0.37344831,1923.4,1923.3,0.31199]
[1688226485879,0.68541831,1923.4,1923.3,0.31199]
[1688226487676,0.37344831,1923.4,1923.3,0.31199]
[1688226487878,0.68541831,1923.4,1923.3,0.31199]
[1688226488675,0.37344831,1923.4,1923.3,0.31199]
[1688226488880,0.68541831,1923.4,1923.3,0.31199]
[1688226490083,0.39870196,1923.4,1923.3,0.31199]
[1688226491180,0.68541831,1923.4,1923.3,0.31199]
[1688226491681,0.37344831,1923.4,1923.3,0.31199]
[1688226491981,0.68541831,1923.4,1923.3,0.31199]
[1688226492183,0.39870196,1923.4,1923.3,0.31199]
[1688226493180,0.68541831,1923.4,1923.3,0.31199]
[1688226500390,0.39870196,1923.4,1923.3,0.31199]
[1688226501185,0.68541831,1923.4,1923.3,0.31199]
[1688226503798,0.68541831,1923.4,1923.2,9.5553864]
[1688226503799,3.96041831,1923.4,1923.2,1.1931864]
[1688226504090,3.87368635,1923.4,1923.2,0.4131864]
[1688226504286,3.87368635,1923.4,1923.2,0.7251864]
[1688226504489,0.28671635,1923.4,1923.2,3.591]
[1688226504887,0.28671635,1923.4,1923.2,8.5161]
[1688226505194,0.59868635,1923.4,1923.2,8.5161]
[1688226505486,0.28671635,1923.4,1923.2,8.5161]
[1688226506892,0.59868635,1923.4,1923.2,8.5161]
[1688226509692,0.28671635,1923.4,1923.2,8.5161]
[1688226509894,4.99398702,1923.5,1923.2,8.5161]
[1688226510391,0.28671635,1923.4,1923.2,8.5161]
[1688226510599,0.59868635,1923.4,1923.2,8.5161]
[1688226510890,0.59868635,1923.4,1923.2,11.7239]
[1688226511097,4.99398702,1923.5,1923.3,0.56748412]
[1688226511098,4.21406702,1923.5,1923.3,0.56748412]
[1688226511294,0.93506702,1923.5,1923.4,0.31197]
[1688226511494,3.28679552,1923.6,1923.4,0.31197]
[1688226511689,3.28679552,1923.6,1923.4,10.47417]
[1688226511891,3.28679552,1923.6,1923.5,0.87943412]
[1688226512187,0.00779552,1923.6,1923.5,0.87943412]
[1688226519008,0.00779552,1923.6,1923.5,4.15843412]
[1688226519411,2.90367552,1923.8,1923.5,4.15843412]
[1688226519599,1.96081298,1923.8,1923.6,3.279]
[1688226519907,0.93506702,1923.8,1923.7,0.87940412]
[1688226520207,0.93506702,1923.8,1923.7,5.95360412]
[1688226521804,1.24696702,1923.8,1923.7,5.95360412]
[1688226522705,0.93506702,1923.8,1923.7,5.95360412]
[1688226525513,1.22178337,1923.8,1923.7,5.95360412]
[1688226526316,0.93506702,1923.8,1923.7,5.95360412]
[1688226526912,1.22178337,1923.8,1923.7,5.95360412]
[1688226527616,0.93506702,1923.8,1923.7,5.95360412]
[1688226532323,1.24696702,1923.8,1923.7,5.95360412]
[1688226534120,1.53368337,1923.8,1923.7,5.95360412]
[1688226535618,1.24696702,1923.8,1923.7,5.95360412]
[1688226535823,1.24697702,1923.8,1923.7,5.95360412]
[1688226536725,0.93506702,1923.8,1923.7,5.95360412]
[1688226537423,1.24696702,1923.8,1923.7,5.95360412]
[1688226538423,1.53368337,1923.8,1923.7,5.95360412]
[1688226541827,1.53368337,1923.8,1923.7,5.38612]
[1688226545435,1.24696702,1923.8,1923.7,5.38612]
[1688226545829,1.53368337,1923.8,1923.7,5.38612]
[1688226547733,1.24696702,1923.8,1923.7,5.38612]
[1688226554137,1.53368337,1923.8,1923.7,5.38612]
[1688226557340,1.24696702,1923.8,1923.7,5.38612]
[1688226558445,1.53368337,1923.8,1923.7,5.38612]
[1688226560942,4.74148337,1923.8,1923.7,5.38612]
[1688226562058,8.02048337,1923.8,1923.7,5.38612]
[1688226565862,7.73376702,1923.8,1923.7,5.38612]
[1688226567357,4.52596702,1923.8,1923.7,5.38612]
[1688226567955,4.81268337,1923.8,1923.7,5.38612]
[1688226568762,4.52596702,1923.8,1923.7,5.38612]
[1688226568967,4.21406702,1923.8,1923.7,5.38612]
[1688226569157,3.279,1923.8,1923.7,5.38612]
[1688226569358,3.5909,1923.8,1923.7,5.38612]
[1688226570057,3.87761635,1923.8,1923.7,5.38612]
[1688226570759,3.5909,1923.8,1923.7,5.38612]
[1688226571256,3.87761635,1923.8,1923.7,5.38612]
[1688226571462,3.5909,1923.8,1923.7,5.38612]
[1688226571959,3.87761635,1923.8,1923.7,5.38612]
[1688226572165,0.59861635,1923.8,1923.7,5.38612]
[1688226572461,4.6302414,1923.9,1923.7,5.38612]
[1688226572759,4.9421314,1923.9,1923.7,5.38612]
[1688226577866,0.28671635,1923.8,1923.7,5.0742]
[1688226578058,0.59861635,1923.8,1923.7,5.0742]
[1688226578258,0.59861635,1923.8,1923.7,0.31192]
[1688226579156,3.87761635,1923.8,1923.7,0.31192]
[1688226582769,3.56571635,1923.8,1923.7,0.31192]
[1688226583874,3.87761635,1923.8,1923.7,0.31192]
[1688226591970,3.5909,1923.8,1923.7,0.31192]
[1688226592177,0.3119,1923.8,1923.7,0.31192]
[1688226593280,0.59861635,1923.8,1923.7,0.31192]
[1688226593972,0.59861635,1923.8,1923.7,0.72183811]
[1688226594275,0.59861635,1923.8,1923.7,0.31192]
[1688226595484,3.80641635,1923.8,1923.7,0.31192]
[1688226595675,0.59861635,1923.8,1923.7,0.31192]
[1688226596072,3.80641635,1923.8,1923.7,0.31192]
[1688226602189,7.08541635,1923.8,1923.7,0.31192]
[1688226605987,7.08541635,1923.8,1923.6,0.78760707]
[1688226606192,7.08541635,1923.8,1923.6,0.00779707]
[1688226606689,8.02048337,1923.8,1923.6,0.31972707]
[1688226610286,3.279,1923.7,1923.6,0.31972707]
[1688226610485,3.59092,1923.7,1923.6,0.31972707]
[1688226611292,4.52598702,1923.7,1923.6,0.31972707]
[1688226612689,4.52598702,1923.7,1923.6,0.00779707]
[1688226613686,4.52598702,1923.7,1923.6,0.31973707]
[1688226620891,4.94700157,1923.7,1923.6,0.31973707]
[1688226640820,4.63508157,1923.7,1923.6,0.31973707]
[1688226641017,4.01193455,1923.7,1923.6,0.31973707]
[1688226645922,3.59092,1923.7,1923.6,0.31973707]
[1688226649922,3.87763635,1923.7,1923.6,0.31973707]
[1688226655421,3.59092,1923.7,1923.6,0.31973707]
[1688226660336,3.87763635,1923.7,1923.6,0.31973707]
[1688226660537,3.59092,1923.7,1923.6,0.31973707]
[1688226660727,3.87763635,1923.7,1923.6,0.31973707]
[1688226666641,3.59092,1923.7,1923.6,0.31973707]
[1688226668942,3.87763635,1923.7,1923.6,0.31973707]
[1688226669845,3.87763635,1923.7,1923.6,0.14623691]
[1688226670246,4.81270337,1923.7,1923.6,0.14623691]
[1688226672648,4.94926148,1923.7,1923.6,0.14623691]
[1688226676746,4.94526148,1923.7,1923.5,0.00779768]
[1688226677043,6.79874,1923.6,1923.5,0.00779768]
[1688226678151,11.62704,1923.6,1923.5,0.00779768]
[1688226678348,12.56210702,1923.6,1923.5,0.00779768]
[1688226693769,12.56210702,1923.6,1923.5,0.31974768]
[1688226694467,7.73380702,1923.6,1923.5,0.31974768]
[1688226694760,6.79874,1923.6,1923.5,0.31974768]
[1688226695364,6.79874,1923.6,1923.5,5.36014768]
[1688226700265,0.41488641,1923.7,1923.6,0.104]
[1688226700471,3.279,1924.1,1923.6,7.45921412]
[1688226700778,3.275,1924.1,1924.0,0.31187]
[1688226700967,3.58685,1924.1,1924.0,0.31187]
[1688226701471,3.275,1924.1,1924.0,0.31187]
[1688226702067,3.28279302,1924.2,1924.0,0.31187]
[1688226702665,3.59463302,1924.2,1924.0,0.31187]
[1688226703168,0.28671635,1924.1,1924.0,0.31187]
[1688226703366,3.59463302,1924.2,1924.0,0.31187]
[1688226703568,3.88134937,1924.2,1924.0,0.31187]
[1688226707071,0.28132317,1924.1,1924.0,0.31187]
[1688226707372,3.88134937,1924.2,1924.0,0.31187]
[1688226707877,3.48913055,1924.1,1924.0,0.31187]
[1688226708071,7.07999055,1924.1,1924.0,0.31187]
[1688226709169,12.24769055,1924.1,1924.0,0.31187]
[1688226709370,13.18275757,1924.1,1924.0,0.31187]
[1688226709870,13.18275757,1924.1,1923.9,10.77589]
[1688226710072,12.24769055,1924.1,1924.0,0.31187]
[1688226710265,13.47041525,1924.1,1924.0,0.31187]
[1688226718983,13.88892823,1924.1,1924.0,0.31187]
[1688226722381,13.88892823,1924.1,1923.7,0.93562]
[1688226722584,13.88892823,1924.1,1923.7,0.31192]
[1688226722585,3.279,1923.8,1923.7,0.31192]
[1688226722887,3.87762635,1923.8,1923.7,0.31192]
[1688226723473,9.05572635,1923.8,1923.7,0.31192]
[1688226723677,9.9917347,1923.8,1923.7,0.31192]
[1688226732785,4.21100835,1923.8,1923.7,0.31192]
[1688226732986,3.275,1923.8,1923.7,0.31192]
[1688226734688,3.58691,1923.8,1923.7,0.31192]
[1688226736889,3.70182122,1923.8,1923.7,0.31192]
[1688226737497,3.98853757,1923.8,1923.7,0.31192]
[1688226737901,3.38991122,1923.8,1923.7,0.31192]
[1688226738804,3.70182122,1923.8,1923.7,0.31192]
[1688226739800,3.70182122,1923.8,1923.7,0.2194073]
[1688226747009,3.98853757,1923.8,1923.7,0.2194073]
[1688226747614,3.99253757,1923.8,1923.6,0.77978]
[1688226747910,3.59092,1923.7,1923.6,0.77978]
[1688226748213,4.64349648,1923.7,1923.5,5.45522768]
[1688226748399,4.64349648,1923.7,1923.6,0.31194]
[1688226748598,4.93021283,1923.7,1923.6,0.31194]
[1688226756507,4.33157648,1923.7,1923.6,0.31194]
[1688226757212,3.39556813,1923.7,1923.6,0.31194]
[1688226758208,3.70748813,1923.7,1923.6,0.31194]
[1688226759116,3.99420448,1923.7,1923.6,0.31194]
[1688226765624,7.20200448,1923.7,1923.6,0.31194]
[1688226765823,8.13801283,1923.7,1923.6,0.31194]
[1688226774925,4.93021283,1923.7,1923.6,0.31194]
[1688226775231,3.70748813,1923.7,1923.6,0.31194]
[1688226775523,3.99420448,1923.7,1923.6,0.31194]
[1688226776527,3.70748813,1923.7,1923.6,0.31194]
[1688226777121,6.91528813,1923.7,1923.6,0.31194]
[1688226777328,4.93021283,1923.7,1923.6,0.31194]
[1688226777531,3.99420448,1923.7,1923.6,0.31194]
[1688226777940,3.39556813,1923.7,1923.6,0.31194]
[1688226778231,3.70748813,1923.7,1923.6,0.31194]
[1688226778420,3.39556813,1923.7,1923.6,0.31194]
[1688226779029,3.70748813,1923.7,1923.6,0.31194]
[1688226779623,0.11656813,1923.7,1923.6,3.69494]
[1688226780029,3.59087,1924.0,1923.6,3.69494]
[1688226780234,3.59087,1924.0,1923.7,3.77528412]
[1688226780532,3.59087,1924.0,1923.8,0.3119]
[1688226780925,3.59087,1924.0,1923.8,0.4159]
[1688226781332,3.59087,1924.0,1923.8,0.3119]
[1688226781333,3.87758635,1924.0,1923.8,0.3119]
[1688226782027,3.7070697,1923.9,1923.8,0.3119]
[1688226782436,8.8716697,1923.9,1923.8,0.3119]
[1688226796140,9.80767805,1923.9,1923.8,0.3119]
[1688226798236,13.01547805,1923.9,1923.8,0.3119]
[1688226798545,9.80767805,1923.9,1923.8,0.3119]
[1688226802443,10.2256173,1923.9,1923.8,0.3119]
[1688226802948,16.6894173,1923.9,1923.5,5.67886768]
[1688226803147,3.279,1923.6,1923.5,10.86566768]
[1688226803348,3.279,1923.6,1923.5,5.97446768]
[1688226803539,3.39487064,1923.6,1923.5,5.97446768]
[1688226803742,3.70681064,1923.6,1923.5,5.97446768]
[1688226805151,3.99352699,1923.6,1923.5,5.97446768]
[1688226806945,3.70681064,1923.6,1923.5,5.97446768]
[1688226807552,4.64281899,1923.6,1923.5,5.97446768]
[1688226807955,4.92953534,1923.6,1923.5,5.97446768]
[1688226808543,4.64281899,1923.6,1923.5,5.97446768]
[1688226809156,4.92953534,1923.6,1923.5,5.97446768]
[1688226811054,4.64281899,1923.6,1923.5,5.97446768]
[1688226819458,1.05187899,1923.6,1923.5,6.07846768]
[1688226819666,0.11587064,1923.6,1923.5,9.35746768]
[1688226819959,4.21100835,1924.0,1923.6,0.56748412]
[1688226820161,4.21100835,1924.0,1923.7,3.51972]
[1688226820162,3.275,1924.0,1923.7,3.51972]
[1688226820366,4.00103673,1924.0,1923.7,3.51972]
[1688226824675,4.93704508,1924.0,1923.7,3.51972]
[1688226826876,4.00103673,1924.0,1923.7,3.51972]
[1688226827269,4.93704508,1924.0,1923.7,3.51972]
[1688226827472,0.08591639,1923.9,1923.7,3.51972]
[1688226827672,0.39781639,1923.9,1923.7,3.51972]
[1688226833071,0.08591639,1923.9,1923.8,3.77528412]
[1688226833277,0.08591639,1923.9,1923.8,4.08718412]
[1688226836778,0.68451274,1923.9,1923.8,0.3119]
[1688226837090,3.96351274,1923.9,1923.8,0.3119]
[1688226837579,12.49581274,1923.9,1923.6,0.7798]
[1688226837780,3.279,1923.7,1923.6,0.7798]
[1688226837981,3.36691162,1923.7,1923.6,0.7798]
[1688226838185,3.96554797,1923.7,1923.6,0.7798]
[1688226849097,3.67883162,1923.7,1923.6,0.7798]
[1688226851198,3.96554797,1923.7,1923.6,0.7798]
[1688226856603,3.94138874,1923.7,1923.6,0.7798]
[1688226856798,3.87763635,1923.7,1923.6,0.7798]
[1688226860103,9.11473635,1923.7,1923.6,0.7798]
[1688226860306,10.0507447,1923.7,1923.6,0.7798]
[1688226864909,9.76402835,1923.7,1923.6,0.7798]
[1688226865103,10.0507447,1923.7,1923.6,0.7798]
[1688226873815,4.21500835,1923.7,1923.6,0.7798]
[1688226874317,3.279,1923.7,1923.6,0.7798]
[1688226874518,3.59092,1923.7,1923.6,0.7798]
[1688226875512,3.87763635,1923.7,1923.6,0.7798]
[1688226878524,3.59092,1923.7,1923.6,1.19954004]
[1688226879127,3.87763635,1923.7,1923.6,1.19954004]
[1688226879428,3.87763635,1923.7,1923.6,0.7798]
[1688226879619,9.13793635,1923.7,1923.6,0.7798]
[1688226879822,10.0739447,1923.7,1923.6,0.7798]
[1688226882725,10.0739447,1923.7,1923.5,0.31971768]
[1688226883026,3.58694,1923.6,1923.5,0.31971768]
[1688226883222,6.79474,1923.6,1923.5,0.31971768]
[1688226883416,7.73074835,1923.6,1923.5,0.31971768]
[1688226885823,4.52294835,1923.6,1923.5,0.31971768]
[1688226886025,3.58694,1923.6,1923.5,0.31971768]
[1688226889923,3.58694,1923.6,1923.5,0.18528402]
[1688226891639,4.21500835,1923.7,1923.5,0.18528402]
[1688226891825,3.279,1923.7,1923.5,0.18528402]
[1688226892136,0.73790453,1923.8,1923.5,3.46428402]
[1688226892325,0.73790453,1923.8,1923.5,8.24608402]
[1688226892723,0.73790453,1923.8,1923.6,0.56748412]
[1688226893024,0.73790453,1923.8,1923.7,0.31192]
[1688226901842,1.08729588,1923.8,1923.7,0.31192]
[1688226902452,0.80057953,1923.8,1923.7,0.31192]
[1688226903454,1.08729588,1923.8,1923.7,0.31192]
[1688226906847,0.374595,1923.8,1923.7,0.31192]
[1688226907562,0.062675,1923.8,1923.7,0.31192]
[1688226907755,4.21500835,1923.9,1923.7,0.31192]
[1688226907960,4.21500835,1923.9,1923.8,0.56748412]
[1688226908151,4.94733047,1923.9,1923.8,0.87938412]
[1688226909258,5.23404682,1923.9,1923.8,0.87938412]
[1688226909460,4.94733047,1923.9,1923.8,0.87938412]
[1688226910167,1.66833047,1923.9,1923.8,0.87938412]
[1688226910354,0.73232212,1923.9,1923.8,0.87938412]
[1688226912362,1.66833047,1923.9,1923.8,0.87938412]
[1688226916767,1.73114245,1923.9,1923.8,0.87938412]
[1688226923166,1.31071033,1923.9,1923.8,0.87938412]
[1688226924479,1.31071033,1923.9,1923.8,0.3119]
[1688226926674,0.37470198,1923.9,1923.8,0.3119]
[1688226934885,0.66141833,1923.9,1923.8,0.3119]
[1688226936889,0.37470198,1923.9,1923.8,0.3119]
[1688226940496,0.37470198,1923.9,1923.8,3.5799]
[1688226940497,0.06281198,1923.9,1923.8,3.5799]
[1688226940699,0.06281198,1923.9,1923.8,6.7877]
[1688226940993,0.20913039,1923.9,1923.8,6.7877]
[1688226949896,0.26382408,1923.9,1923.8,6.7877]
[1688226950096,0.26382408,1923.9,1923.8,3.5799]
[1688226953506,0.57571408,1923.9,1923.8,3.5799]
[1688226957508,0.26382408,1923.9,1923.8,3.5799]
[1688226958407,0.57571408,1923.9,1923.8,3.5799]
[1688226959424,0.26382408,1923.9,1923.8,6.8917]
[1688226960409,0.00779302,1924.2,1923.8,6.8917]
[1688226960609,0.00779302,1924.2,1924.1,3.59085]
[1688226961314,0.00779302,1924.2,1924.1,4.15833412]
[1688226961810,0.27208741,1924.2,1924.1,4.15833412]
[1688226962005,0.58392741,1924.2,1924.1,3.59085]
[1688226962209,3.79172741,1924.2,1924.1,0.31185]
[1688226962411,0.58392741,1924.2,1924.1,0.31185]
[1688226962604,3.79172741,1924.2,1924.1,0.31185]
[1688226962808,0.58392741,1924.2,1924.1,0.31185]
[1688226963905,0.98971027,1924.2,1924.1,0.31185]
[1688226965822,4.19751027,1924.2,1924.1,0.31185]
[1688226966110,4.48422662,1924.2,1924.1,0.31185]
[1688226966312,1.27642662,1924.2,1924.1,0.31185]
[1688226966512,0.98971027,1924.2,1924.1,0.31185]
[1688226966714,4.19751027,1924.2,1924.1,0.31185]
[1688226967015,0.98971027,1924.2,1924.1,0.31185]
[1688226967215,1.27642662,1924.2,1924.1,0.31185]
[1688226967414,4.48422662,1924.2,1924.0,3.279]